[Event "Early-Titled-Tuesday-Blitz-November-28-2023"]
[Site "Chess.com"]
[Date "2023.11.28"]
[Round "1"]
[White "vladgoncharov"]
[Black "GMthekingindian"]
[Result "1-0"]
[WhiteElo "2623"]
[BlackElo "2318"]
[TimeControl "180+1"]
[EndTime "8:08:16 PST"]
[Termination "vladgoncharov won by resignation"]

1. d4 {[%clk 0:03:00.5]} 1... d5 {[%clk 0:03:00.2]} 2. c4 {[%clk 0:02:59.9]}
2... e6 {[%clk 0:03:00.8]} 3. Nc3 {[%clk 0:02:59.2]} 3... Nf6 {[%clk 0:03:01.4]}
4. cxd5 {[%clk 0:02:58.8]} 4... exd5 {[%clk 0:03:02.3]} 5. Bg5 {[%clk
0:02:58.3]} 5... c6 {[%clk 0:03:01.4]} 6. e3 {[%clk 0:02:58.2]} 6... Bd6 {[%clk
0:02:59.3]} 7. Bd3 {[%clk 0:02:57.4]} 7... O-O {[%clk 0:02:58.4]} 8. Nge2 {[%clk
0:02:56.7]} 8... Re8 {[%clk 0:02:57.3]} 9. Qc2 {[%clk 0:02:45.3]} 9... h6 {[%clk
0:02:56.6]} 10. Bh4 {[%clk 0:02:44.7]} 10... Nbd7 {[%clk 0:02:45.9]} 11. Bg3
{[%clk 0:02:29.4]} 11... Nf8 {[%clk 0:02:32.5]} 12. O-O {[%clk 0:02:27.6]} 12...
Ne6 {[%clk 0:01:58.2]} 13. a3 {[%clk 0:02:20.9]} 13... Ng5 {[%clk 0:01:49.2]}
14. b4 {[%clk 0:02:13.9]} 14... a6 {[%clk 0:01:48.7]} 15. Na4 {[%clk 0:01:48.6]}
15... Nge4 {[%clk 0:01:45]} 16. Bxd6 {[%clk 0:01:47.3]} 16... Nxd6 {[%clk
0:01:24]} 17. Nc5 {[%clk 0:01:46.8]} 17... b6 {[%clk 0:01:21.4]} 18. Nb3 {[%clk
0:01:39.1]} 18... Bd7 {[%clk 0:01:13.6]} 19. Ng3 {[%clk 0:01:32.1]} 19... Nfe4
{[%clk 0:01:12]} 20. Bxe4 {[%clk 0:01:14.2]} 20... Nxe4 {[%clk 0:01:07.3]} 21.
Nxe4 {[%clk 0:01:13.2]} 21... Rxe4 {[%clk 0:01:06.9]} 22. Nd2 {[%clk 0:01:12.2]}
22... Re6 {[%clk 0:01:03]} 23. a4 {[%clk 0:01:12.4]} 23... Rg6 {[%clk
0:01:00.9]} 24. f4 {[%clk 0:01:06.1]} 24... Qe7 {[%clk 0:00:57]} 25. Qc3 {[%clk
0:00:57.7]} 25... Re8 {[%clk 0:00:50.7]} 26. Rf3 {[%clk 0:00:45.3]} 26... Bg4
{[%clk 0:00:48.3]} 27. Rg3 {[%clk 0:00:45]} 27... h5 {[%clk 0:00:45.6]} 28. h3
{[%clk 0:00:40.3]} 28... Bd7 {[%clk 0:00:31.3]} 29. Rxg6 {[%clk 0:00:39.7]}
29... fxg6 {[%clk 0:00:32.2]} 30. Nf1 {[%clk 0:00:37.9]} 30... g5 {[%clk
0:00:31.7]} 31. a5 {[%clk 0:00:30.7]} 31... b5 {[%clk 0:00:28.8]} 32. Ra2 {[%clk
0:00:14.2]} 32... g4 {[%clk 0:00:28.6]} 33. hxg4 {[%clk 0:00:12.2]} 33... hxg4
{[%clk 0:00:28.7]} 34. Qe1 {[%clk 0:00:12.9]} 34... Qf6 {[%clk 0:00:27.8]} 35.
Qg3 {[%clk 0:00:12.1]} 35... Kf7 {[%clk 0:00:26.4]} 36. Rc2 {[%clk 0:00:11]}
36... Rh8 {[%clk 0:00:26]} 37. Kf2 {[%clk 0:00:07.9]} 37... Qf5 {[%clk
0:00:24.6]} 38. Rc3 {[%clk 0:00:07]} 38... Re8 {[%clk 0:00:20.4]} 39. Nd2 {[%clk
0:00:06]} 39... g5 {[%clk 0:00:18.3]} 40. Kg1 {[%clk 0:00:02.8]} 40... Rh8
{[%clk 0:00:18.1]} 41. Kf2 {[%clk 0:00:02.6]} 41... Rg8 {[%clk 0:00:17.5]} 42.
Kg1 {[%clk 0:00:02.7]} 42... gxf4 {[%clk 0:00:17.9]} 43. Qxf4 {[%clk 0:00:03.6]}
43... Qxf4 {[%clk 0:00:18.3]} 44. exf4 {[%clk 0:00:04.5]} 44... Re8 {[%clk
0:00:18.8]} 45. Nf1 {[%clk 0:00:04.9]} 45... Kf6 {[%clk 0:00:18.6]} 46. Kf2
{[%clk 0:00:05.1]} 46... Bf5 {[%clk 0:00:18.7]} 47. Ne3 {[%clk 0:00:04.9]} 47...
Be4 {[%clk 0:00:18.9]} 48. Rxc6+ {[%clk 0:00:05.1]} 48... Kf7 {[%clk 0:00:18.4]}
49. Nxg4 {[%clk 0:00:05.4]} 49... Rg8 {[%clk 0:00:18.1]} 50. Ne5+ {[%clk
0:00:06.1]} 50... Ke7 {[%clk 0:00:18.2]} 51. g4 {[%clk 0:00:06.8]} 51... Kd8
{[%clk 0:00:17.2]} 52. f5 {[%clk 0:00:07]} 52... Rh8 {[%clk 0:00:17.1]} 53. f6
{[%clk 0:00:07.4]} 53... Rf8 {[%clk 0:00:17.2]} 54. g5 {[%clk 0:00:07.4]} 54...
Bf5 {[%clk 0:00:17]} 55. Kg3 {[%clk 0:00:07.4]} 55... Rh8 {[%clk 0:00:17.1]} 56.
Kf4 {[%clk 0:00:07.7]} 56... Bc8 {[%clk 0:00:17.1]} 57. g6 {[%clk 0:00:07.8]}
57... Rh1 {[%clk 0:00:17]} 58. f7 {[%clk 0:00:07.6]} 58... Rf1+ {[%clk
0:00:17.9]} 59. Kg5 {[%clk 0:00:07.7]} 59... Bd7 {[%clk 0:00:13.6]} 60. Rd6
{[%clk 0:00:07.3]} 60... Ke7 {[%clk 0:00:14.1]} 61. Rxd7+ {[%clk 0:00:07.7]}
61... Kf8 {[%clk 0:00:14.7]} 62. Rd8+ {[%clk 0:00:08.1]} 62... Ke7 {[%clk
0:00:15.4]} 63. Re8+ {[%clk 0:00:08.4]} 63... Kd6 {[%clk 0:00:15.3]} 64. f8=Q+
{[%clk 0:00:08.3]} 1-0

[Event "Early-Titled-Tuesday-Blitz-November-28-2023"]
[Site "Chess.com"]
[Date "2023.11.28"]
[Round "1"]
[White "millenium19"]
[Black "Zurability"]
[Result "1/2-1/2"]
[WhiteElo "2501"]
[BlackElo "2868"]
[TimeControl "180+1"]
[EndTime "8:08:17 PST"]
[Termination "Game drawn - insufficient material"]

1. e4 {[%clk 0:02:35.2]} 1... c5 {[%clk 0:02:59.7]} 2. Nf3 {[%clk 0:02:35.3]}
2... d6 {[%clk 0:02:59.9]} 3. Bb5+ {[%clk 0:02:33.9]} 3... Bd7 {[%clk
0:02:57.2]} 4. Bxd7+ {[%clk 0:02:33.4]} 4... Qxd7 {[%clk 0:02:58.1]} 5. c4
{[%clk 0:02:33.1]} 5... Nf6 {[%clk 0:02:51.4]} 6. Nc3 {[%clk 0:02:32.8]} 6... g6
{[%clk 0:02:52.1]} 7. O-O {[%clk 0:02:32]} 7... Bg7 {[%clk 0:02:52.5]} 8. d4
{[%clk 0:02:32.5]} 8... cxd4 {[%clk 0:02:53.4]} 9. Nxd4 {[%clk 0:02:32.7]} 9...
O-O {[%clk 0:02:54.3]} 10. f3 {[%clk 0:02:32.6]} 10... Rc8 {[%clk 0:02:54.6]}
11. b3 {[%clk 0:02:31.7]} 11... d5 {[%clk 0:02:52.4]} 12. exd5 {[%clk
0:02:25.7]} 12... Nxd5 {[%clk 0:02:47.5]} 13. Nxd5 {[%clk 0:02:26]} 13... e6
{[%clk 0:02:47.8]} 14. Bh6 {[%clk 0:02:25.1]} 14... exd5 {[%clk 0:02:47.6]} 15.
Bxg7 {[%clk 0:02:24.6]} 15... Kxg7 {[%clk 0:02:48.5]} 16. Nb5 {[%clk 0:02:24.5]}
16... dxc4 {[%clk 0:02:37.7]} 17. Nd6 {[%clk 0:02:22.1]} 17... Rd8 {[%clk
0:02:28.8]} 18. Nxc4 {[%clk 0:02:21.7]} 18... Qxd1 {[%clk 0:02:16.6]} 19. Raxd1
{[%clk 0:02:21.3]} 19... Nc6 {[%clk 0:02:17.5]} 20. Nd6 {[%clk 0:02:17.3]} 20...
b6 {[%clk 0:02:05.9]} 21. Rd2 {[%clk 0:02:15.5]} 21... Kf8 {[%clk 0:01:58.8]}
22. Rfd1 {[%clk 0:02:15.2]} 22... Rd7 {[%clk 0:01:58.2]} 23. Nb5 {[%clk
0:02:05.9]} 23... Rxd2 {[%clk 0:01:57]} 24. Rxd2 {[%clk 0:02:06]} 24... Ke7
{[%clk 0:01:54.3]} 25. Kf2 {[%clk 0:02:04.7]} 25... a6 {[%clk 0:01:46.2]} 26.
Re2+ {[%clk 0:02:04.5]} 26... Kd7 {[%clk 0:01:44.5]} 27. Rd2+ {[%clk 0:02:04.8]}
27... Ke7 {[%clk 0:01:44.9]} 28. Re2+ {[%clk 0:02:04.8]} 28... Kf6 {[%clk
0:01:40.4]} 29. Nc7 {[%clk 0:02:01.3]} 29... Rb8 {[%clk 0:01:31.8]} 30. Nxa6
{[%clk 0:01:55]} 30... Rb7 {[%clk 0:01:32.1]} 31. b4 {[%clk 0:01:53.1]} 31...
Ra7 {[%clk 0:01:27.8]} 32. b5 {[%clk 0:01:46]} 32... Nd4 {[%clk 0:01:27.7]} 33.
Rb2 {[%clk 0:01:42.1]} 33... Ke6 {[%clk 0:01:22.4]} 34. a4 {[%clk 0:01:40.4]}
34... Kd5 {[%clk 0:01:18.1]} 35. Rd2 {[%clk 0:01:36.4]} 35... Kc4 {[%clk
0:01:15.6]} 36. g4 {[%clk 0:01:32.8]} 36... Re7 {[%clk 0:00:56.2]} 37. Nb8
{[%clk 0:01:17.2]} 37... Re6 {[%clk 0:00:43.1]} 38. Nc6 {[%clk 0:01:02.1]} 38...
Nxc6 {[%clk 0:00:39.9]} 39. Rc2+ {[%clk 0:01:02]} 39... Kb3 {[%clk 0:00:29.8]}
40. Rxc6 {[%clk 0:01:01.8]} 40... Kxa4 {[%clk 0:00:29.9]} 41. Rc7 {[%clk
0:00:58]} 41... Rf6 {[%clk 0:00:29.2]} 42. g5 {[%clk 0:00:56.1]} 42... Rf5
{[%clk 0:00:29.2]} 43. h4 {[%clk 0:00:55.4]} 43... Kxb5 {[%clk 0:00:28.9]} 44.
Ke3 {[%clk 0:00:54.9]} 44... Kb4 {[%clk 0:00:28.8]} 45. Ke4 {[%clk 0:00:53.3]}
45... b5 {[%clk 0:00:28.9]} 46. h5 {[%clk 0:00:53.8]} 46... Rxg5 {[%clk
0:00:17.3]} 47. hxg6 {[%clk 0:00:51.5]} 47... fxg6 {[%clk 0:00:16.4]} 48. Rxh7
{[%clk 0:00:51.5]} 48... Ka3 {[%clk 0:00:16]} 49. Ra7+ {[%clk 0:00:50.9]} 49...
Kb3 {[%clk 0:00:15.6]} 50. f4 {[%clk 0:00:51.3]} 50... Rg1 {[%clk 0:00:13.5]}
51. Rg7 {[%clk 0:00:50.8]} 51... b4 {[%clk 0:00:13.3]} 52. Kd3 {[%clk
0:00:50.6]} 52... Kb2 {[%clk 0:00:12.4]} 53. f5 {[%clk 0:00:50.1]} 53... Rd1+
{[%clk 0:00:05.9]} 54. Ke2 {[%clk 0:00:49.6]} 54... Rd5 {[%clk 0:00:05.8]} 55.
fxg6 {[%clk 0:00:47.5]} 55... b3 {[%clk 0:00:05.9]} 56. Rb7 {[%clk 0:00:42.9]}
56... Rg5 {[%clk 0:00:04]} 57. g7 {[%clk 0:00:42.8]} 57... Kc2 {[%clk
0:00:04.3]} 58. Kf3 {[%clk 0:00:43]} 58... b2 {[%clk 0:00:04.5]} 59. Rc7+ {[%clk
0:00:42.4]} 59... Kd2 {[%clk 0:00:04.6]} 60. Rb7 {[%clk 0:00:42.2]} 60... Kc1
{[%clk 0:00:05.1]} 61. Rc7+ {[%clk 0:00:42.3]} 61... Kd1 {[%clk 0:00:05.2]} 62.
Rd7+ {[%clk 0:00:41.6]} 62... Kc2 {[%clk 0:00:03.1]} 63. Rc7+ {[%clk 0:00:39.8]}
63... Kb3 {[%clk 0:00:03.4]} 64. Kf4 {[%clk 0:00:37.8]} 64... Rg1 {[%clk
0:00:01.6]} 65. Ke5 {[%clk 0:00:34.8]} 65... b1=Q {[%clk 0:00:01.1]} 66. Rb7+
{[%clk 0:00:34.6]} 66... Ka2 {[%clk 0:00:01.8]} 67. Rxb1 {[%clk 0:00:34.6]}
67... Kxb1 {[%clk 0:00:02.7]} 68. Kf6 {[%clk 0:00:34.9]} 68... Rf1+ {[%clk
0:00:03.4]} 69. Ke7 {[%clk 0:00:35]} 69... Rg1 {[%clk 0:00:04.3]} 70. Kf8 {[%clk
0:00:35.3]} 70... Rxg7 {[%clk 0:00:04.7]} 71. Kxg7 {[%clk 0:00:35.4]} 1/2-1/2

[Event "Early-Titled-Tuesday-Blitz-November-28-2023"]
[Site "Chess.com"]
[Date "2023.11.28"]
[Round "1"]
[White "nochewycandy"]
[Black "Aisen1011"]
[Result "1-0"]
[WhiteElo "2772"]
[BlackElo "2425"]
[TimeControl "180+1"]
[EndTime "8:08:23 PST"]
[Termination "nochewycandy won by resignation"]

1. e4 {[%clk 0:03:00.9]} 1... e5 {[%clk 0:02:56.6]} 2. Nf3 {[%clk 0:03:00.5]}
2... Nc6 {[%clk 0:02:57.2]} 3. Bc4 {[%clk 0:03:01.1]} 3... Bc5 {[%clk
0:02:57.2]} 4. Qe2 {[%clk 0:03:01.5]} 4... Nf6 {[%clk 0:02:57.5]} 5. Ng5 {[%clk
0:03:01.4]} 5... d5 {[%clk 0:02:37.6]} 6. exd5 {[%clk 0:03:01]} 6... Nd4 {[%clk
0:02:26.9]} 7. Qxe5+ {[%clk 0:02:58.2]} 7... Qe7 {[%clk 0:02:22.8]} 8. Qxe7+
{[%clk 0:02:56]} 8... Kxe7 {[%clk 0:02:23.7]} 9. Bd3 {[%clk 0:02:21.1]} 9... h6
{[%clk 0:02:15.5]} 10. Ne4 {[%clk 0:02:20.6]} 10... Nxe4 {[%clk 0:02:07.9]} 11.
Bxe4 {[%clk 0:02:21.5]} 11... Bg4 {[%clk 0:01:55.4]} 12. O-O {[%clk 0:02:11.2]}
12... Kd6 {[%clk 0:01:42]} 13. c3 {[%clk 0:02:06.5]} 13... Ne2+ {[%clk
0:01:37.6]} 14. Kh1 {[%clk 0:02:07.1]} 14... f5 {[%clk 0:01:27.9]} 15. Bc2
{[%clk 0:02:01]} 15... Nxc1 {[%clk 0:01:20.3]} 16. Rxc1 {[%clk 0:01:59.9]} 16...
Bxf2 {[%clk 0:01:20]} 17. Rf1 {[%clk 0:01:54.4]} 17... Bb6 {[%clk 0:00:08.9]}
18. Na3 {[%clk 0:01:53.4]} 18... Rhf8 {[%clk 0:00:07]} 19. d4 {[%clk 0:01:50.3]}
19... Kxd5 {[%clk 0:00:06.1]} 20. h3 {[%clk 0:01:50.4]} 20... Bh5 {[%clk
0:00:05.9]} 21. Bxf5 {[%clk 0:01:48.6]} 21... c5 {[%clk 0:00:06]} 22. dxc5
{[%clk 0:01:40.8]} 22... Bxc5 {[%clk 0:00:06.9]} 23. Nc2 {[%clk 0:01:41.5]}
23... Be2 {[%clk 0:00:06.9]} 24. Rfe1 {[%clk 0:01:39.6]} 24... Rxf5 {[%clk
0:00:06.5]} 25. Rxe2 {[%clk 0:01:40.1]} 25... Raf8 {[%clk 0:00:07.2]} 26. Rd1+
{[%clk 0:01:40.4]} 26... Kc6 {[%clk 0:00:07.2]} 27. Nd4+ {[%clk 0:01:37.7]}
27... Bxd4 {[%clk 0:00:07.5]} 28. Rxd4 {[%clk 0:01:38.6]} 28... Rf1+ {[%clk
0:00:07.1]} 29. Kh2 {[%clk 0:01:39.1]} 29... R1f2 {[%clk 0:00:08]} 30. Rdd2
{[%clk 0:01:38.5]} 30... Rxe2 {[%clk 0:00:07.9]} 31. Rxe2 {[%clk 0:01:38.8]}
31... Rf7 {[%clk 0:00:08.4]} 32. g4 {[%clk 0:01:37.2]} 32... Kc5 {[%clk
0:00:08.7]} 33. Kg3 {[%clk 0:01:37.6]} 33... Kc4 {[%clk 0:00:09.1]} 34. Rf2
{[%clk 0:01:33.5]} 34... Re7 {[%clk 0:00:08.6]} 35. h4 {[%clk 0:01:32.2]} 35...
Kd3 {[%clk 0:00:08.8]} 36. g5 {[%clk 0:01:29.6]} 36... hxg5 {[%clk 0:00:08.4]}
37. hxg5 {[%clk 0:01:30.5]} 37... b5 {[%clk 0:00:07.6]} 38. Kg4 {[%clk
0:01:29.6]} 38... g6 {[%clk 0:00:05.4]} 39. Rf6 {[%clk 0:01:27.6]} 39... Re4+
{[%clk 0:00:05.4]} 40. Kf3 {[%clk 0:01:25]} 40... Re5 {[%clk 0:00:04]} 41. Rxg6
{[%clk 0:01:24.2]} 41... Kc2 {[%clk 0:00:04.3]} 42. Kf4 {[%clk 0:01:23.3]} 42...
Re1 {[%clk 0:00:04.3]} 43. Ra6 {[%clk 0:01:23]} 43... Kxb2 {[%clk 0:00:04.3]}
44. Rxa7 {[%clk 0:01:23.4]} 44... Kxc3 {[%clk 0:00:04.5]} 45. Rb7 {[%clk
0:01:22.8]} 45... Rf1+ {[%clk 0:00:04.6]} 46. Ke5 {[%clk 0:01:22.4]} 46... Rg1
{[%clk 0:00:02.8]} 47. Kf6 {[%clk 0:01:22.7]} 47... Rf1+ {[%clk 0:00:03]} 48.
Ke6 {[%clk 0:01:22.1]} 48... Re1+ {[%clk 0:00:03.3]} 49. Kf6 {[%clk 0:01:22.5]}
49... Rf1+ {[%clk 0:00:03.6]} 50. Kg7 {[%clk 0:01:22.9]} 50... Rf5 {[%clk
0:00:03.6]} 51. g6 {[%clk 0:01:23]} 51... Kb2 {[%clk 0:00:04]} 52. Ra7 {[%clk
0:01:23]} 52... b4 {[%clk 0:00:03.9]} 53. Kh6 {[%clk 0:01:23.2]} 53... Rf2
{[%clk 0:00:03.8]} 54. g7 {[%clk 0:01:22.7]} 54... Rh2+ {[%clk 0:00:04.3]} 55.
Kg6 {[%clk 0:01:23.2]} 55... Rg2+ {[%clk 0:00:05.1]} 56. Kf7 {[%clk 0:01:23.8]}
56... Rf2+ {[%clk 0:00:05.5]} 57. Kg8 {[%clk 0:01:24.2]} 57... Ka1 {[%clk
0:00:05.7]} 58. Ra4 {[%clk 0:01:24]} 58... Rb2 {[%clk 0:00:04.3]} 59. Ra6 {[%clk
0:01:22.5]} 59... Rxa2 {[%clk 0:00:03.4]} 60. Rxa2+ {[%clk 0:01:18.9]} 60...
Kxa2 {[%clk 0:00:04.3]} 61. Kf7 {[%clk 0:01:19.8]} 61... b3 {[%clk 0:00:04.3]}
62. g8=Q {[%clk 0:01:20.4]} 62... b2 {[%clk 0:00:05.2]} 63. Ke7+ {[%clk
0:01:16.9]} 63... Ka1 {[%clk 0:00:04.4]} 64. Qg7 {[%clk 0:01:16.8]} 64... Ka2
{[%clk 0:00:03.5]} 65. Qf7+ {[%clk 0:01:17.3]} 65... Ka1 {[%clk 0:00:02.6]} 66.
Qf6 {[%clk 0:01:17.8]} 66... Ka2 {[%clk 0:00:02.9]} 67. Qe6+ {[%clk 0:01:18.3]}
67... Ka1 {[%clk 0:00:03.2]} 68. Qe5 {[%clk 0:01:18.9]} 68... Ka2 {[%clk
0:00:03.5]} 69. Qd5+ {[%clk 0:01:19.5]} 69... Ka1 {[%clk 0:00:03.9]} 70. Qd4
{[%clk 0:01:20.1]} 70... Ka2 {[%clk 0:00:04.2]} 71. Qc4+ {[%clk 0:01:20.3]}
71... Ka1 {[%clk 0:00:04.4]} 72. Qc3 {[%clk 0:01:20.8]} 72... Ka2 {[%clk
0:00:04.6]} 73. Qa5+ {[%clk 0:01:21.4]} 73... Kb1 {[%clk 0:00:04.6]} 74. Ke6
{[%clk 0:01:21]} 74... Kc2 {[%clk 0:00:04.9]} 75. Qc5+ {[%clk 0:01:20.9]} 75...
Kd2 {[%clk 0:00:05.3]} 76. Qb4+ {[%clk 0:01:20.9]} 76... Kc1 {[%clk 0:00:05.6]}
77. Qc3+ {[%clk 0:01:21.2]} 77... Kb1 {[%clk 0:00:06.1]} 78. Kd5 {[%clk
0:01:21.8]} 78... Ka2 {[%clk 0:00:06.6]} 79. Qa5+ {[%clk 0:01:21.6]} 79... Kb1
{[%clk 0:00:06.9]} 80. Kd4 {[%clk 0:01:21.1]} 80... Kc1 {[%clk 0:00:07.8]} 81.
Qc3+ {[%clk 0:01:20.9]} 81... Kb1 {[%clk 0:00:07.2]} 82. Kd3 {[%clk 0:01:20.3]}
82... Ka2 {[%clk 0:00:07.5]} 83. Qa5+ {[%clk 0:01:19.8]} 83... Kb1 {[%clk
0:00:08.1]} 84. Kc3 {[%clk 0:01:19.1]} 84... Kc1 {[%clk 0:00:08]} 85. Qa3 {[%clk
0:01:19.2]} 85... Kd1 {[%clk 0:00:07.4]} 86. Qxb2 {[%clk 0:01:19.4]} 1-0

[Event "Early-Titled-Tuesday-Blitz-November-28-2023"]
[Site "Chess.com"]
[Date "2023.11.28"]
[Round "1"]
[White "KNVB"]
[Black "ChessWarrior3"]
[Result "1/2-1/2"]
[WhiteElo "2747"]
[BlackElo "2438"]
[TimeControl "180+1"]
[EndTime "8:08:27 PST"]
[Termination "Game drawn - insufficient material"]

1. e4 {[%clk 0:03:00.9]} 1... c5 {[%clk 0:02:54.6]} 2. c3 {[%clk 0:02:59.8]}
2... e6 {[%clk 0:02:52.1]} 3. d4 {[%clk 0:02:59.3]} 3... d5 {[%clk 0:02:51.6]}
4. exd5 {[%clk 0:02:57.8]} 4... Qxd5 {[%clk 0:02:48.7]} 5. Nf3 {[%clk
0:02:54.3]} 5... Nc6 {[%clk 0:02:47.2]} 6. Na3 {[%clk 0:02:54]} 6... cxd4 {[%clk
0:02:46.5]} 7. Nb5 {[%clk 0:02:53.1]} 7... Bd6 {[%clk 0:02:36.6]} 8. Nfxd4
{[%clk 0:01:24.8]} 8... Nxd4 {[%clk 0:02:31.8]} 9. Qxd4 {[%clk 0:01:24.2]} 9...
Qxd4 {[%clk 0:02:29.7]} 10. Nxd4 {[%clk 0:01:25.1]} 10... Nf6 {[%clk 0:02:29]}
11. Bg5 {[%clk 0:01:09.8]} 11... Bd7 {[%clk 0:02:27.2]} 12. Bb5 {[%clk
0:01:03.6]} 12... Bxb5 {[%clk 0:02:26.7]} 13. Nxb5 {[%clk 0:01:03.3]} 13... Bb8
{[%clk 0:02:27.4]} 14. Bxf6 {[%clk 0:00:58.6]} 14... gxf6 {[%clk 0:02:27.3]} 15.
Ke2 {[%clk 0:00:53.5]} 15... Ke7 {[%clk 0:02:27.9]} 16. Rad1 {[%clk 0:00:50.6]}
16... a6 {[%clk 0:02:28.5]} 17. Nd4 {[%clk 0:00:50.2]} 17... Be5 {[%clk
0:02:27.4]} 18. Nf3 {[%clk 0:00:41.4]} 18... Rad8 {[%clk 0:02:25.9]} 19. h3
{[%clk 0:00:16.8]} 19... Bc7 {[%clk 0:02:20.5]} 20. Nd2 {[%clk 0:00:10.7]} 20...
f5 {[%clk 0:02:20]} 21. Nc4 {[%clk 0:00:10.3]} 21... b5 {[%clk 0:02:19.2]} 22.
Ne3 {[%clk 0:00:08.2]} 22... f4 {[%clk 0:02:19.1]} 23. Nc2 {[%clk 0:00:06.3]}
23... e5 {[%clk 0:02:18.9]} 24. Rxd8 {[%clk 0:00:04.4]} 24... Rxd8 {[%clk
0:02:18.4]} 25. Rd1 {[%clk 0:00:04.6]} 25... Rxd1 {[%clk 0:02:15]} 26. Kxd1
{[%clk 0:00:05.5]} 26... a5 {[%clk 0:02:15.4]} 27. Ke2 {[%clk 0:00:03.6]} 27...
Bd6 {[%clk 0:02:14.4]} 28. Kd3 {[%clk 0:00:03]} 28... Ke6 {[%clk 0:02:13.9]} 29.
f3 {[%clk 0:00:01.8]} 29... f5 {[%clk 0:02:07.3]} 30. b3 {[%clk 0:00:02.7]}
30... Kd5 {[%clk 0:01:56.3]} 31. c4+ {[%clk 0:00:03.6]} 31... bxc4+ {[%clk
0:01:56.8]} 32. bxc4+ {[%clk 0:00:04.5]} 32... Kc6 {[%clk 0:01:43.5]} 33. Na1
{[%clk 0:00:03.5]} 33... a4 {[%clk 0:01:41.9]} 34. Nc2 {[%clk 0:00:02.9]} 34...
Bc5 {[%clk 0:01:31.4]} 35. Kc3 {[%clk 0:00:03]} 35... Kb6 {[%clk 0:01:24.7]} 36.
Kd3 {[%clk 0:00:03.1]} 36... Kc6 {[%clk 0:00:57.3]} 37. Ne1 {[%clk 0:00:03.2]}
37... Bb4 {[%clk 0:00:51.2]} 38. Nc2 {[%clk 0:00:03.4]} 38... Ba5 {[%clk
0:00:48.5]} 39. Na3 {[%clk 0:00:03.4]} 39... Kc5 {[%clk 0:00:47.1]} 40. Nb5
{[%clk 0:00:03.8]} 40... e4+ {[%clk 0:00:46.1]} 41. fxe4 {[%clk 0:00:04.6]}
41... fxe4+ {[%clk 0:00:46.8]} 42. Kxe4 {[%clk 0:00:05.5]} 42... Kxc4 {[%clk
0:00:46.5]} 43. Nd6+ {[%clk 0:00:04.5]} 43... Kc3 {[%clk 0:00:44.8]} 44. h4
{[%clk 0:00:02.4]} 44... Bb4 {[%clk 0:00:32.5]} 45. Nf7 {[%clk 0:00:01.9]} 45...
Kb2 {[%clk 0:00:32.7]} 46. Kd3 {[%clk 0:00:02.5]} 46... Kxa2 {[%clk 0:00:30]}
47. Kc2 {[%clk 0:00:03.4]} 47... Bf8 {[%clk 0:00:23.4]} 48. h5 {[%clk
0:00:03.5]} 48... Ka3 {[%clk 0:00:22.2]} 49. Ng5 {[%clk 0:00:03.6]} 49... Kb4
{[%clk 0:00:19]} 50. Nxh7 {[%clk 0:00:03.3]} 50... Bh6 {[%clk 0:00:18]} 51. Nf6
{[%clk 0:00:03.3]} 51... a3 {[%clk 0:00:17]} 52. Ng4 {[%clk 0:00:02.2]} 52...
Bg7 {[%clk 0:00:16]} 53. h6 {[%clk 0:00:02.7]} 53... Bh8 {[%clk 0:00:14.3]} 54.
Nf2 {[%clk 0:00:02.9]} 54... a2 {[%clk 0:00:14.3]} 55. Nd3+ {[%clk 0:00:02.8]}
55... Ka3 {[%clk 0:00:14.8]} 56. Ne1 {[%clk 0:00:01.9]} 56... a1=Q {[%clk
0:00:14.9]} 57. Kd2 {[%clk 0:00:02.5]} 57... Qb2+ {[%clk 0:00:15.5]} 58. Kd1
{[%clk 0:00:02.2]} 58... Kb3 {[%clk 0:00:14.9]} 59. Nd3 {[%clk 0:00:01.7]} 59...
Qxg2 {[%clk 0:00:14]} 60. Nc1+ {[%clk 0:00:01.9]} 60... Kc3 {[%clk 0:00:14.2]}
61. Ne2+ {[%clk 0:00:02.7]} 61... Kd3 {[%clk 0:00:14]} 62. Nxf4+ {[%clk
0:00:03.5]} 62... Ke4 {[%clk 0:00:07.9]} 63. Nxg2 {[%clk 0:00:04.4]} 63... Kf5
{[%clk 0:00:08.3]} 64. Nh4+ {[%clk 0:00:04.2]} 64... Kg5 {[%clk 0:00:07.5]} 65.
Nf5 {[%clk 0:00:02.7]} 65... Kxf5 {[%clk 0:00:04.9]} 66. h7 {[%clk 0:00:03.6]}
66... Kg6 {[%clk 0:00:05.3]} 67. Ke2 {[%clk 0:00:03.9]} 67... Kxh7 {[%clk
0:00:05.7]} 1/2-1/2